bitfinex-derivatives/quotes_BNBF0:USTF0_20250708
["timestamp","ask_amount","ask_price","bid_price","bid_amount"]
[1751935825258,1.05470731,661.75,661.11,1.462]
[1751935825459,1.05470731,661.74,661.11,1.462]
[1751935825763,1.05470731,661.73,661.11,1.462]
[1751935826062,1.05470731,661.72,661.11,1.462]
[1751935826263,1.05470731,661.71,661.11,1.462]
[1751935826562,1.05470731,661.7,661.11,1.462]
[1751935826764,1.05470731,661.73,661.11,1.462]
[1751935826962,1.05470731,661.72,661.11,1.462]
[1751935827264,1.05470731,661.71,661.11,1.462]
[1751935827462,1.05470731,661.7,661.11,1.462]
[1751935827659,1.05470731,661.72,661.11,1.462]
[1751935827963,1.05470731,661.71,661.11,1.462]
[1751935828160,1.05470731,661.7,661.11,1.462]
[1751935828360,1.05470731,661.73,661.11,1.462]
[1751935828564,1.05470731,661.72,661.11,1.462]
[1751935828760,1.68514281,661.68,661.11,1.462]
[1751935828964,1.05470731,661.67,661.11,1.462]
[1751935829264,1.05470731,661.66,661.11,1.462]
[1751935829463,1.05470731,661.65,661.11,1.462]
[1751935829759,1.05470731,661.64,661.11,1.462]
[1751935829958,1.05470731,661.67,661.11,1.462]
[1751935830164,1.05470731,661.66,661.11,1.462]
[1751935830463,1.05470731,661.65,661.11,3.69051097]
[1751935830661,1.05470731,661.64,661.11,3.69051097]
[1751935830864,1.05470731,661.67,661.11,3.69051097]
[1751935831061,1.05470731,661.66,661.11,1.462]
[1751935831264,1.05470731,661.65,661.11,3.69051097]
[1751935831465,1.05470731,661.64,661.11,1.462]
[1751935831662,1.05470731,661.67,661.11,1.462]
[1751935831866,1.05470731,661.66,661.11,1.462]
[1751935832065,1.05470731,661.65,661.11,1.462]
[1751935832362,1.05470731,661.64,661.11,1.462]
[1751935832666,1.05470731,661.63,661.11,1.462]
[1751935832866,1.05470731,661.67,661.11,1.462]
[1751935833168,1.05470731,661.66,661.11,1.462]
[1751935833367,1.05470731,661.65,661.11,3.69051097]
[1751935833564,1.05470731,661.64,661.11,1.462]
[1751935833763,1.05470731,661.67,661.11,1.462]
[1751935833965,1.05470731,661.66,661.11,1.462]
[1751935834268,1.05470731,661.65,661.11,1.462]
[1751935834466,1.05470731,661.64,661.11,1.462]
[1751935834662,1.05470731,661.68,661.11,1.462]
[1751935834864,1.05470731,661.67,661.11,1.462]
[1751935835063,1.05470731,661.68,661.11,1.462]
[1751935835364,1.05470731,661.71,661.11,1.462]
[1751935835764,2.73985012,661.7,661.11,1.462]
[1751935836067,1.68514281,661.65,661.11,1.462]
[1751935836268,1.05470731,661.64,661.11,1.462]
[1751935836567,1.05470731,661.63,661.11,1.462]
[1751935836766,1.68514281,661.6,661.11,1.462]
[1751935837067,1.05470731,661.59,661.11,1.462]
[1751935837364,1.05470731,661.58,661.11,1.462]
[1751935837565,1.05470731,661.67,661.11,1.462]
[1751935837768,1.05470731,661.66,661.11,1.462]
[1751935838065,1.68514281,661.63,661.11,1.462]
[1751935838266,1.05470731,661.62,661.11,1.462]
[1751935838469,1.05470731,661.61,661.11,1.462]
[1751935838670,1.05470731,661.6,661.11,1.462]
[1751935838870,1.68514281,661.64,661.11,1.462]
[1751935839070,1.68514281,661.61,661.11,1.462]
[1751935839471,1.68514281,661.62,661.11,1.462]
[1751935839666,1.68514281,661.59,661.11,1.462]
[1751935840373,4.52145509,661.6,661.11,1.462]
[1751935840673,2.83631228,661.59,661.11,1.462]
[1751935841173,1.28802324,661.59,661.11,1.462]
[1751935841367,1.05470731,661.59,661.11,1.462]
[1751935841573,1.05470731,661.58,661.11,1.462]
[1751935841872,1.05470731,661.59,661.11,1.462]
[1751935842073,1.05470731,661.58,661.11,1.462]
[1751935842270,1.05470731,661.57,661.11,1.462]
[1751935842572,1.68514281,661.6,661.11,1.462]
[1751935842573,1.05470731,661.59,661.11,1.462]
[1751935842773,1.05470731,661.58,661.11,1.462]
[1751935843067,1.05470731,661.57,661.11,1.462]
[1751935843273,1.05470731,661.56,661.11,1.462]
[1751935843473,1.05470731,661.59,661.11,1.462]
[1751935843673,1.05470731,661.58,661.11,1.462]
[1751935843873,1.05470731,661.57,661.11,1.462]
[1751935844070,1.05470731,661.56,661.11,1.462]
[1751935844273,1.05470731,661.55,661.11,1.462]
[1751935844569,1.05470731,661.59,661.11,1.462]
[1751935844772,1.05470731,661.58,661.11,1.462]
[1751935845069,1.05470731,661.57,661.11,1.462]
[1751935845273,1.05470731,661.56,661.11,1.462]
[1751935845468,1.05470731,661.55,661.11,1.462]
[1751935845671,1.05470731,661.54,661.11,1.462]
[1751935845872,1.05470731,661.58,661.11,1.462]
[1751935846073,1.05470731,661.57,661.11,1.462]
[1751935846268,1.05470731,661.56,661.11,1.462]
[1751935846470,1.05470731,661.55,661.11,1.462]
[1751935846769,1.05470731,661.54,661.11,1.462]
[1751935846968,1.05470731,661.59,661.11,1.462]
[1751935847168,1.05470731,661.58,661.11,1.462]
[1751935847368,1.05470731,661.57,661.11,1.462]
[1751935847571,1.05470731,661.56,661.11,1.462]
[1751935847768,1.05470731,661.55,661.11,1.462]
[1751935847970,1.05470731,661.54,661.11,1.462]
[1751935848172,1.05470731,661.53,661.11,1.462]
[1751935848375,1.05470731,661.52,661.11,1.462]
[1751935848673,2.73985012,661.6,661.11,1.462]
[1751935848872,1.05470731,661.59,661.11,1.462]
[1751935849071,1.05470731,661.58,661.11,1.462]
[1751935849275,1.05470731,661.57,661.11,1.462]
[1751935849573,1.05470731,661.56,661.11,1.462]
[1751935849776,1.05470731,661.55,661.11,1.462]
[1751935849973,1.05470731,661.54,661.11,1.462]
[1751935850175,1.05470731,661.53,661.11,1.462]
[1751935850477,1.05470731,661.52,661.11,1.462]
[1751935850678,1.05470731,661.51,661.11,1.462]
[1751935850879,1.05470731,661.6,661.11,1.462]
[1751935851078,1.05470731,661.59,661.11,1.462]
[1751935851280,1.05470731,661.58,661.11,1.462]
[1751935851478,1.05470731,661.57,661.11,1.462]
[1751935851680,1.05470731,661.56,661.11,1.462]
[1751935851980,1.05470731,661.55,661.11,1.462]
[1751935852177,1.05470731,661.54,661.11,1.462]
[1751935852381,1.05470731,661.53,661.11,1.462]
[1751935852578,1.05470731,661.52,661.11,1.462]
[1751935852778,1.05470731,661.61,661.11,1.462]
[1751935853077,1.05470731,661.6,661.11,1.462]
[1751935853280,1.05470731,661.59,661.11,1.462]
[1751935853481,1.05470731,661.58,661.11,1.462]
[1751935853680,3.37443394,661.98,661.11,1.462]
[1751935853681,1.05470731,661.57,661.11,1.462]
[1751935853877,1.05470731,661.56,661.11,1.462]
[1751935854084,1.05470731,661.55,661.11,1.462]
[1751935854283,1.05470731,661.54,661.11,1.462]
[1751935854483,1.05470731,661.53,661.11,1.462]
[1751935854784,1.05470731,661.52,661.11,1.462]
[1751935854985,1.05470731,661.51,661.11,1.462]
[1751935855280,1.05470731,661.5,661.11,1.462]
[1751935855485,1.05470731,661.49,661.11,1.462]
[1751935855785,1.05470731,661.48,661.11,1.462]
[1751935856084,1.05470731,661.47,661.11,1.462]
[1751935856286,1.05470731,661.46,661.11,1.462]
[1751935856579,1.05470731,661.45,661.11,1.462]
[1751935856885,1.05470731,661.44,661.11,1.462]
[1751935857080,1.05470731,661.43,661.11,1.462]
[1751935857384,1.05470731,661.42,661.11,1.462]
[1751935857582,1.05470731,661.41,661.11,1.462]
[1751935857783,1.05470731,661.4,661.11,1.462]
[1751935857980,1.05470731,661.39,661.11,1.462]
[1751935858179,1.05470731,661.38,661.11,1.462]
[1751935858379,1.05470731,661.37,661.11,1.462]
[1751935858581,1.05470731,661.41,661.11,1.462]
[1751935858783,1.05470731,661.4,661.11,1.462]
[1751935858981,1.05470731,661.39,661.11,1.462]
[1751935859181,1.05470731,661.38,661.11,1.462]
[1751935859381,1.05470731,661.37,661.11,1.462]
[1751935859586,1.05470731,661.36,661.11,1.462]
[1751935859782,1.05470731,661.35,661.11,1.462]
[1751935860086,1.05470731,661.5,661.11,1.462]
[1751935860281,1.05470731,661.49,661.11,1.462]
[1751935860486,1.05470731,661.48,661.11,1.462]
[1751935860681,1.05470731,661.47,661.11,1.462]
[1751935861683,1.05470731,661.46,661.11,1.462]
[1751935861888,1.05470731,661.45,661.11,1.462]
[1751935862986,1.05470731,661.45,660.84,0.2630465]
[1751935863183,1.68514281,661.52,660.84,0.2630465]
[1751935863384,1.68514281,661.53,660.84,0.2630465]
[1751935864984,1.68514281,661.5,660.84,0.2630465]
[1751935865389,1.68514281,661.46,660.84,0.2630465]
[1751935865590,1.05041609,661.45,660.84,0.2630465]
[1751935865784,1.05041609,661.44,660.84,0.2630465]
[1751935866084,1.05041609,661.43,660.84,0.2630465]
[1751935866287,1.05041609,661.42,660.84,0.2630465]
[1751935866482,1.68514281,661.46,660.84,0.2630465]
[1751935866483,1.05041609,661.41,660.84,0.2630465]
[1751935866685,1.05041609,661.4,660.84,0.2630465]
[1751935866984,1.68514281,661.46,660.84,0.2630465]
[1751935866985,1.05041609,661.39,660.85,1.582]
[1751935867188,1.05041609,661.38,660.85,1.582]
[1751935867489,1.05041609,661.37,660.85,1.582]
[1751935867689,1.05041609,661.36,660.85,1.582]
[1751935867889,1.05041609,661.35,660.85,1.582]
[1751935868091,1.05041609,661.34,660.85,1.582]
[1751935868287,1.05041609,661.33,660.85,1.582]
[1751935868487,1.05041609,661.32,660.85,1.582]
[1751935868787,1.05041609,661.31,660.85,1.582]
[1751935868993,1.05041609,661.3,660.85,1.582]
[1751935869190,1.05041609,661.29,660.85,1.582]
[1751935869394,1.05041609,661.28,660.85,1.582]
[1751935869594,1.05041609,661.46,660.85,1.582]
[1751935869795,1.05041609,661.45,660.85,1.582]
[1751935869992,1.05041609,661.44,660.85,1.582]
[1751935870191,1.05041609,661.43,660.85,1.582]
[1751935870390,1.05041609,661.42,660.85,1.582]
[1751935870592,1.05041609,661.41,660.85,1.582]
[1751935870795,1.05041609,661.4,660.85,1.582]
[1751935870991,1.05041609,661.39,660.85,1.582]
[1751935871294,1.68514281,661.45,660.85,1.582]
[1751935871295,1.05041609,661.38,660.85,1.582]
[1751935871491,1.05041609,661.37,660.85,1.582]
[1751935871693,1.05041609,661.36,660.85,1.582]
[1751935871889,1.05041609,661.35,660.85,1.582]
[1751935872095,1.05041609,661.34,660.85,1.582]
[1751935872392,1.05041609,661.33,660.85,1.582]
[1751935872596,1.05041609,661.32,660.85,1.582]
[1751935872793,1.05041609,661.31,660.85,1.582]
[1751935872992,1.05041609,661.3,660.85,1.582]
[1751935873198,1.05041609,661.29,660.85,1.582]
[1751935873397,1.05041609,661.28,660.85,1.582]
[1751935873598,1.05023854,661.27,660.85,1.582]
[1751935873792,1.05023854,661.26,660.85,1.582]
[1751935873997,1.05023854,661.43,660.85,1.582]
[1751935874296,1.05023854,661.42,660.85,1.582]
[1751935874599,1.05023854,661.41,660.85,1.582]
[1751935874793,1.05023854,661.4,660.85,1.582]
[1751935874998,1.68514281,661.44,660.85,1.582]
[1751935874999,1.05023854,661.39,660.85,1.582]
[1751935875197,1.05023854,661.38,660.85,1.582]
[1751935875399,1.05023854,661.37,660.85,1.582]
[1751935875693,1.05023854,661.36,660.85,1.582]
[1751935875894,1.05023854,661.35,660.85,1.582]
[1751935876098,1.05023854,661.34,660.85,1.582]
[1751935876297,1.05023854,661.33,660.85,1.582]
[1751935876494,1.05023854,661.32,660.85,1.582]
[1751935876695,1.05023854,661.31,660.85,1.582]
[1751935876900,1.05023854,661.3,660.85,1.582]
[1751935877097,1.05023854,661.29,660.85,1.582]
[1751935877298,1.05023854,661.28,660.85,1.582]
[1751935877602,2.82634937,661.43,660.85,1.582]
[1751935877799,1.05023854,661.42,660.85,1.582]
[1751935877999,1.05023854,661.41,660.85,1.582]
[1751935878204,1.05023854,661.4,660.85,1.582]
[1751935878397,1.05023854,661.39,660.85,1.582]
[1751935878601,1.05023854,661.38,660.85,1.582]
[1751935878803,1.05023854,661.37,660.85,1.582]
[1751935878999,1.05023854,661.36,660.85,1.582]
[1751935879203,1.05023854,661.35,660.85,1.582]
[1751935879503,1.05023854,661.34,660.85,1.582]
[1751935879700,1.05023854,661.33,660.85,1.582]
[1751935879900,1.05023854,661.32,660.85,1.582]
[1751935880204,1.05023854,661.31,660.85,1.582]
[1751935880405,1.05023854,661.3,660.85,1.582]
[1751935880705,1.05023854,661.29,660.85,1.582]
[1751935880905,1.05023854,661.42,660.85,1.582]
[1751935881103,1.05023854,661.41,660.85,1.582]
[1751935881299,1.05023854,661.4,660.85,1.582]
[1751935881503,1.05023854,661.39,660.85,1.582]
[1751935881803,1.05023854,661.38,660.85,1.582]
[1751935882003,1.05023854,661.37,660.85,1.582]
[1751935882200,1.05023854,661.36,660.85,1.582]
[1751935882505,1.05023854,661.35,660.85,1.582]
[1751935882800,1.05023854,661.34,660.85,1.582]
[1751935883001,1.05023854,661.33,660.85,1.582]
[1751935883207,1.05023854,661.32,660.85,1.582]
[1751935883404,1.05023854,661.31,660.85,1.582]
[1751935883609,1.05023854,661.42,660.85,1.582]
[1751935883804,1.05023854,661.41,660.85,1.582]
[1751935884005,1.05023854,661.4,660.85,1.582]
[1751935884208,1.05023854,661.39,660.85,1.582]
[1751935884511,1.05023854,661.38,660.85,1.582]
[1751935884807,1.05023854,661.37,660.85,1.582]
[1751935885010,1.05130334,661.36,660.85,1.582]
[1751935885209,1.05130334,661.35,660.85,1.582]
[1751935885406,1.05130334,661.34,660.85,1.582]
[1751935885709,1.05130334,661.33,660.85,1.582]
[1751935885906,1.05130334,661.32,660.85,1.582]
[1751935886106,1.05130334,661.31,660.85,1.582]
[1751935886306,1.05130334,661.41,660.85,1.582]
[1751935886509,1.05130334,661.4,660.85,1.582]
[1751935886708,1.05130334,661.39,660.85,1.582]
[1751935886906,1.05130334,661.38,660.85,1.582]
[1751935887106,1.05130334,661.37,660.85,1.582]
[1751935887309,1.05130334,661.36,660.85,1.582]
[1751935887514,1.05130334,661.41,660.85,1.582]
[1751935887709,1.05130334,661.4,660.85,1.582]
[1751935888012,1.05130334,661.39,660.85,1.582]
[1751935888208,1.05130334,661.38,660.85,1.582]
[1751935888412,1.05130334,661.37,660.85,1.582]
[1751935888610,2.73644615,661.43,660.85,1.582]
[1751935888812,1.05130334,661.42,660.7,0.26320964]
[1751935889011,1.05130334,661.41,660.7,0.26320964]
[1751935889208,1.05130334,661.4,660.7,0.26320964]
[1751935889514,1.05130334,661.39,660.7,0.26320964]
[1751935889810,1.05130334,661.38,660.7,0.26320964]
[1751935890009,1.05130334,661.37,660.7,0.26320964]
[1751935890209,1.05130334,661.36,660.7,0.26320964]
[1751935890410,1.05130334,661.35,660.7,0.26320964]
[1751935890612,1.05130334,661.34,660.7,0.26320964]
[1751935890806,1.05130334,661.33,660.7,0.26320964]
[1751935891008,1.05130334,661.32,660.7,0.26320964]
[1751935891207,1.05130334,661.31,660.7,0.26320964]
[1751935891415,2.73644615,661.38,660.7,0.26320964]
[1751935891710,1.68514281,661.33,660.71,1.383]
[1751935891908,1.05130334,661.32,660.71,1.383]
[1751935892110,1.68514281,661.33,660.71,1.383]
[1751935892111,1.05130334,661.31,660.71,1.383]
[1751935892311,1.68514281,661.33,660.71,1.383]
[1751935892312,1.05130334,661.3,660.71,1.383]
[1751935892509,1.05130334,661.29,660.71,1.383]
[1751935892809,1.05130334,661.28,660.71,1.383]
[1751935893109,1.05130334,661.27,660.71,1.383]
[1751935893312,1.05130334,661.32,660.71,1.383]
[1751935893509,1.05130334,661.31,660.71,1.383]
[1751935893812,1.05130334,661.3,660.71,1.383]
[1751935894011,1.05130334,661.29,660.71,1.383]
[1751935894310,1.05130334,661.28,660.71,1.383]
[1751935894511,1.05130334,661.27,660.71,1.383]
[1751935894713,1.05130334,661.31,660.71,1.383]
[1751935895010,1.05130334,661.3,660.71,1.383]
[1751935895311,1.05130334,661.29,660.71,1.383]
[1751935895514,1.05130334,661.28,660.71,1.383]
[1751935895715,1.05130334,661.31,660.71,1.383]
[1751935895915,1.05130334,661.3,660.71,1.383]
[1751935896111,1.05130334,661.29,660.71,1.383]
[1751935896417,1.68514281,661.32,660.71,1.383]
[1751935897014,1.68514281,661.31,660.71,1.383]
[1751935897918,1.05130334,661.3,660.71,1.383]
[1751935898116,1.05130334,661.29,660.71,1.383]
[1751935898314,1.05130334,661.28,660.71,1.383]
[1751935898514,1.05130334,661.3,660.71,1.383]
[1751935898713,1.05130334,661.29,660.71,1.383]
[1751935899013,1.05130334,661.28,660.71,1.383]
[1751935899217,1.05130334,661.3,660.71,1.383]
[1751935899516,1.68514281,661.31,660.71,1.383]
[1751935899517,1.05130334,661.29,660.71,1.383]
[1751935899714,1.05130334,661.3,660.71,1.383]
[1751935899915,1.05130334,661.29,660.71,1.383]
[1751935900119,1.05130334,661.3,660.71,1.383]
[1751935900315,1.05130334,661.29,660.71,1.383]
[1751935900516,1.05130334,661.28,660.71,1.383]
[1751935900717,2.73644615,661.31,660.71,1.383]
[1751935900915,1.05130334,661.3,660.71,1.383]
[1751935901122,1.05130334,661.29,660.71,1.383]
[1751935901322,1.05130334,661.28,660.71,1.383]
[1751935901519,1.68514281,661.34,660.71,1.383]
[1751935901724,2.73644615,661.33,660.71,1.383]
[1751935902022,1.05130334,661.32,660.71,1.383]
[1751935902320,1.05130334,661.31,660.71,1.383]
[1751935902520,1.05130334,661.32,660.71,1.383]
[1751935902722,1.05130334,661.31,660.71,1.383]
[1751935902916,1.05130334,661.32,660.71,1.383]
[1751935903121,1.05130334,661.31,660.71,1.383]
[1751935903321,1.05130334,661.32,660.71,1.383]
[1751935903518,1.05130334,661.31,660.71,1.383]
[1751935903718,1.05130334,661.32,660.71,1.383]
[1751935903921,1.05130334,661.31,660.71,1.383]
[1751935904122,1.05130334,661.32,660.71,1.383]
[1751935904322,1.05130334,661.31,660.71,1.383]
[1751935904522,1.05130334,661.32,660.71,1.383]
[1751935904718,1.05130334,661.31,660.71,1.383]
[1751935904923,1.05130334,661.32,660.71,1.383]
[1751935905219,1.05130334,661.31,660.71,1.383]
[1751935905418,1.05130334,661.32,660.71,1.383]
[1751935907323,1.68514281,661.33,660.71,1.383]
[1751935908223,1.68514281,661.36,660.71,1.383]
[1751935908626,1.68514281,661.38,660.71,1.383]
[1751935908926,1.05130334,661.38,660.71,1.383]
[1751935909220,1.05130334,661.42,660.71,1.383]
[1751935909423,1.05130334,661.41,660.71,1.383]
[1751935909622,1.68514281,661.45,660.71,1.383]
[1751935909828,1.68514281,661.46,660.71,1.383]
[1751935910026,2.73644615,661.45,660.71,1.383]
[1751935910428,1.05130334,661.44,660.71,1.383]
[1751935911323,1.05130334,661.43,660.71,1.383]
[1751935911531,2.73644615,661.44,660.71,1.383]
[1751935911729,1.05130334,661.43,660.71,1.383]
[1751935912225,1.05130334,661.42,660.71,1.383]
[1751935912430,1.05130334,661.41,660.71,1.383]
[1751935912629,1.05130334,661.42,660.71,1.383]
[1751935912828,1.05130334,661.41,660.71,1.383]
[1751935913030,1.68514281,661.43,660.71,1.383]
[1751935913031,1.05130334,661.42,660.71,1.383]
[1751935913233,1.05130334,661.41,660.71,1.383]
[1751935913525,1.05130334,661.4,660.71,1.383]
[1751935913730,1.05130334,661.41,660.71,1.383]
[1751935914031,1.68514281,661.42,660.71,1.383]
[1751935914032,1.05498122,661.4,660.71,1.383]
[1751935914329,1.68514281,661.42,660.71,1.383]
[1751935914330,1.05498122,661.39,660.71,1.383]
[1751935914533,1.05498122,661.41,660.71,1.383]
[1751935914730,1.68514281,661.42,660.71,1.383]
[1751935914731,1.05498122,661.4,660.71,1.383]
[1751935914928,1.05498122,661.39,660.71,1.383]
[1751935915131,1.05498122,661.41,660.71,1.383]
[1751935915331,0.49376615,661.58,660.71,1.383]
[1751935915332,1.05498122,661.4,660.71,1.383]
[1751935915528,1.05498122,661.43,660.71,1.383]
[1751935915826,1.05498122,661.42,660.71,1.383]
[1751935916029,1.05498122,661.41,660.71,1.383]
[1751935916230,1.05498122,661.4,660.71,1.383]
[1751935916427,1.05498122,661.43,660.71,1.383]
[1751935916629,1.05498122,661.42,660.71,1.383]
[1751935916827,1.05498122,661.41,660.71,1.383]
[1751935917131,1.05498122,661.4,660.71,1.383]
[1751935917332,1.05498122,661.43,660.71,1.383]
[1751935917532,1.05498122,661.42,660.71,1.383]
[1751935917729,1.05498122,661.41,660.71,1.383]
[1751935917932,1.05498122,661.4,660.71,1.383]
[1751935918133,1.05498122,661.39,660.71,1.383]
[1751935918333,1.05498122,661.38,660.71,1.383]
[1751935918535,1.05498122,661.4,660.71,1.383]
[1751935918734,1.05498122,661.39,660.71,1.383]
[1751935918929,1.05498122,661.38,660.71,1.383]
[1751935919133,1.05498122,661.4,660.71,1.383]
[1751935919434,1.05498122,661.39,660.71,1.383]
[1751935919631,1.05498122,661.38,660.71,1.383]
[1751935919830,1.05546009,661.37,660.71,1.383]
[1751935920033,1.05546009,661.4,660.71,1.383]
[1751935920244,1.05546009,661.39,660.71,1.383]
[1751935920443,1.05546009,661.38,660.71,1.383]
[1751935920740,1.05546009,661.37,660.71,1.383]
[1751935921040,1.05546009,661.4,660.71,1.383]
[1751935921238,1.05546009,661.39,660.71,1.383]
[1751935921441,1.05546009,661.38,660.71,1.383]
[1751935921745,1.05546009,661.37,660.71,1.383]
[1751935921941,1.05546009,661.4,660.71,1.383]
[1751935922145,1.05546009,661.39,660.71,1.383]
[1751935922440,1.05546009,661.38,660.71,1.383]
[1751935922646,1.05546009,661.37,660.71,1.383]
[1751935922940,1.05546009,661.41,660.71,1.383]
[1751935923244,1.05546009,661.4,660.71,1.383]
[1751935923444,1.05546009,661.39,660.71,1.383]
[1751935923641,1.05546009,661.38,660.71,1.383]
[1751935923840,1.05546009,661.37,660.71,1.383]
[1751935924040,1.05546009,661.41,660.71,1.383]
[1751935924243,1.05546009,661.4,660.71,1.383]
[1751935924545,1.05546009,661.39,660.71,1.383]
[1751935924747,1.05546009,661.38,660.71,1.383]
[1751935924946,1.05546009,661.37,660.71,1.383]
[1751935925142,1.05546009,661.36,660.71,1.383]
[1751935925446,1.6966302,661.38,660.71,1.383]
[1751935926446,1.6966302,661.39,660.71,1.383]
[1751935927447,1.6966302,661.38,660.71,1.383]
[1751935927648,1.6966302,661.37,660.71,1.383]
[1751935929346,1.6966302,661.38,660.71,1.383]
[1751935930446,1.05517122,661.37,660.71,1.383]
[1751935930645,1.05517122,661.36,660.71,1.383]
[1751935930846,1.05517122,661.35,660.71,1.383]
[1751935931052,1.05517122,661.34,660.71,1.383]
[1751935931249,1.05517122,661.37,660.71,1.383]
[1751935931449,1.05517122,661.36,660.71,1.383]
[1751935931650,1.05517122,661.35,660.71,1.383]
[1751935931950,1.05517122,661.34,660.71,1.383]
[1751935932247,1.05517122,661.38,660.71,1.383]
[1751935932447,1.05517122,661.37,660.71,1.383]
[1751935932651,1.05517122,661.36,660.71,1.383]
[1751935932851,1.05517122,661.35,660.71,1.383]
[1751935933049,1.05517122,661.34,660.71,1.383]
[1751935933349,1.05517122,661.38,660.71,1.383]
[1751935933545,1.05517122,661.37,660.71,1.383]
[1751935933746,1.05517122,661.36,660.71,1.383]
[1751935933946,1.05517122,661.35,660.71,1.383]
[1751935934149,1.05517122,661.34,660.71,1.383]
[1751935934350,1.05517122,661.38,660.71,1.383]
[1751935934554,1.05517122,661.37,660.71,1.383]
[1751935934749,1.05517122,661.36,660.71,1.383]
[1751935934952,1.05517122,661.35,660.71,1.383]
[1751935935149,1.05517122,661.34,660.71,1.383]
[1751935935351,1.05517122,661.38,660.71,1.383]
[1751935935549,1.6966302,661.39,660.71,1.383]
[1751935935550,1.05517122,661.37,660.71,1.383]
[1751935935749,1.05517122,661.36,660.71,1.383]
[1751935935953,1.05517122,661.35,660.71,1.383]
[1751935936253,1.05517122,661.34,660.71,1.383]
[1751935936553,1.05517122,661.33,660.71,1.383]
[1751935936750,1.05517122,661.37,660.71,1.383]
[1751935936949,1.05517122,661.36,660.71,1.383]
[1751935937250,1.05517122,661.35,660.71,1.383]
[1751935937754,1.05517122,661.38,660.71,1.383]
[1751935937950,1.05597606,661.5,660.71,1.383]
[1751935938152,1.6966302,661.7,660.82,2.22851097]
[1751935938349,1.6966302,661.73,660.81,2.22851097]
[1751935938554,1.6966302,661.85,660.96,2.22851097]
[1751935938751,2.34569691,661.86,661.03,2.22851097]
[1751935938949,2.34569691,661.87,661.04,2.22851097]
[1751935939151,2.34569691,661.89,661.09,2.22851097]
[1751935939356,2.34569691,661.94,660.97,2.22851097]
[1751935939555,4.51633227,662.01,660.97,2.22851097]
[1751935939752,2.81970207,662.0,660.97,2.22851097]
[1751935940050,1.6966302,661.8,660.77,2.22851097]
[1751935940256,2.81970207,661.98,660.91,2.22851097]
[1751935940451,1.05597606,661.97,660.98,2.22851097]
[1751935940655,1.6966302,661.91,660.9,2.22851097]
[1751935940853,1.05597606,661.96,660.71,1.383]
[1751935940854,1.05597606,661.95,660.97,2.22851097]
[1751935941055,1.05597606,661.94,660.97,2.22851097]
[1751935941255,1.05597606,661.93,660.91,2.22851097]
[1751935941455,1.05597606,661.92,660.94,2.22851097]
[1751935941656,1.05597606,661.91,660.94,2.22851097]
[1751935941856,1.05597606,661.9,660.94,2.22851097]
[1751935942056,1.05597606,661.89,660.98,2.22851097]
[1751935942353,1.05597606,661.88,660.96,2.22851097]
[1751935942552,1.05597606,661.87,660.97,2.22851097]
[1751935942757,1.05597606,661.86,660.97,2.22851097]
[1751935942958,1.05597606,661.85,660.97,2.22851097]
[1751935943258,1.05597606,661.84,660.94,2.22851097]
[1751935943553,1.6966302,661.98,660.94,2.22851097]
[1751935943554,1.05597606,661.83,660.94,2.22851097]
[1751935943755,1.05597606,661.82,660.94,2.22851097]
[1751935943955,1.05597606,661.81,660.94,2.22851097]
[1751935944158,1.05597606,661.97,660.94,2.22851097]
[1751935944354,1.05597606,661.96,660.91,2.22851097]
[1751935944556,1.05597606,661.95,660.9,2.22851097]
[1751935944754,1.05597606,661.94,660.9,2.22851097]
[1751935945059,1.05597606,661.93,660.93,2.22851097]
[1751935945257,1.05597606,661.92,660.91,2.22851097]
[1751935945455,1.6966302,661.97,660.71,1.383]